[Event "US Masters 2022"]
[Site "Charlotte"]
[Date "2022.11.25"]
[Round "3.4"]
[White "Ramirez, Alejandro"]
[Black "Chasin, Nico"]
[Result "1/2-1/2"]
[ECO "A11"]
[WhiteElo "2561"]
[BlackElo "2429"]
[Annotator "TA"]
[PlyCount "92"]
[EventDate "2022.11.23"]
[EventType "swiss"]
[EventCountry "USA"]
[SourceTitle "playchess.com"]
[Source "ChessBase"]
[SourceQuality "1"]
[TimeControl "5400+30"]

{[%evp 13,92,13,25,19,34,23,68,68,87,98,151,143,134,138,175,173,164,103,108,120,144,129,125,45,37,49,87,86,139,136,133,91,147,139,127,114,93,99,91,74,82,16,37,22,60,63,62,55,90,90,89,87,93,20,68,19,73,72,72,73,87,80,80,-104,-104,-93,-94,-264,0,0,0,0,0,-3,-8,-8,-8,-14,0,0,0]} 1. Nf3 {[%emt 0:07:30]} Nf6 {[%emt 0:00:30]} 2. g3 {[%emt 0:00:37]} d5 {[%emt 0:00:49]} 3. Bg2 {[%emt 0:00:22]} Bg4 {[%emt 0:01:04]} 4. O-O {[%emt 0:01:22]} Nbd7 {[%emt 0:00:36]} 5. c4 {[%emt 0:03:39]} c6 {[%emt 0:00:44]} 6. cxd5 {[%emt 0:00:57]} cxd5 {[%emt 0:01:49]} 7. Nc3 {[%emt 0:00:54]} e6 {[%emt 0:00:43]} 8. Qb3 {[%emt 0:00:44] A11: English Opening: 1...c6.} Qb6 {[%emt 0:13:23]} 9. Qxb6 {[%emt 0:00:46]} axb6 {[%emt 0:02:15]} (9... Nxb6 {simplifies} 10. Nb5 Bxf3 11. Bxf3 Kd8) 10. Nd4 {[%emt 0:07:11] [#] White is slightly better.} Bc5 $146 {[%emt 0:11:06]} ({Predecessor:} 10... Bb4 11. h3 Bh5 12. g4 Bg6 13. d3 O-O 14. f4 Bc5 15. Be3 e5 16. fxe5 Nxe5 {1-0 (53) Dastan,B (2457)-Kazakov,M (2488) Lvov 2015}) 11. Ndb5 {[%emt 0:04:47]} d4 {[%emt 0:05:05]} ({Black should try} 11... O-O) 12. h3 $1 $16 {[%emt 0:00:37]} dxc3 {[%emt 0:12:57]} 13. hxg4 {[%emt 0:00:16]} cxd2 {[%emt 0:00:01]} 14. Bxd2 {[%emt 0:00:19]} (14. Bxb7 $2 dxc1=R 15. Raxc1 Ra5 $19) 14... Ra4 {[%emt 0:00:01] Prevents b4.} 15. Bxb7 {[%emt 0:07:56] This pair of bishops is nice.} (15. Rfc1 $18) 15... Rxg4 {[%emt 0:02:32]} 16. Kg2 {[%emt 0:00:23]} Ne5 {[%emt 0:02:31]} 17. Bc3 {[%emt 0:07:04]} Ng6 {[%emt 0:01:05]} 18. Kf3 {[%emt 0:15:22]} (18. Kh3 $16 {Hoping for Bxf6.} h5 19. Bf3) 18... h5 $1 $14 {[%emt 0:02:05]} 19. e3 {[%emt 0:00:39]} O-O {[%emt 0:03:30]} 20. Ke2 $1 {[%emt 0:00:33]} Ne4 {[%emt 0:00:02]} (20... h4 $142) 21. Bxe4 $16 {[%emt 0:02:34]} Rxe4 {[%emt 0:00:02]} 22. a3 {[%emt 0:00:17]} f5 {[%emt 0:02:08]} (22... Be7 $142) 23. b4 {[%emt 0:01:46]} Be7 {[%emt 0:00:21]} 24. Rac1 {[%emt 0:03:42]} h4 {[%emt 0:37:11]} 25. f3 {[%emt 0:03:52]} (25. gxh4 {keeps more tension.} Nf4+ 26. Kf3 Nd5 27. h5) 25... Rc4 {[%emt 0:00:00]} 26. gxh4 {[%emt 0:00:05]} Rxh4 {[%emt 0:00:00]} 27. Rf2 {[%emt 0:00:57]} (27. f4 $16) 27... e5 {[%emt 0:00:00]} 28. Rg2 {[%emt 0:01:46]} Kf7 {[%emt 0:00:00]} 29. Be1 {[%emt 0:06:32]} Rh6 {[%emt 0:00:00]} 30. Rc7 {[%emt 0:00:19]} Rd8 {[%emt 0:00:00]} 31. Na7 $1 {[%emt 0:01:41]} Ra8 {[%emt 0:00:00]} 32. a4 {[%emt 0:03:30][%cal Ba3a4,Ba4a5][%mdl 32]} Kf8 {[%emt 0:00:00]} 33. Bc3 {[%emt 0:03:09]} (33. b5 $16) 33... Bf6 {[%emt 0:00:00]} (33... Bd8 $11 34. Rb7 Bf6) 34. b5 {[%emt 0:04:32]} (34. Nc8 Rxa4 35. Nxb6 Ra2+ 36. Kf1 Rh1+ 37. Rg1 Rxg1+ 38. Kxg1 Ke8 $11) (34. Rc8+ $14 {feels stronger.} Rxc8 35. Nxc8) 34... Ne7 {[%emt 0:00:00]} (34... e4 $1 $11 35. Bxf6 exf3+ 36. Kxf3 gxf6) 35. Bb4 {[%emt 0:00:50] a5 is the strong threat. White has more active pieces.} Rh4 {[%emt 0:00:00] Inhibits a5.} 36. Bxe7+ {[%emt 0:09:14]} (36. Nc6 Rxa4 $1 37. Bxe7+ Bxe7 38. Nxe5 (38. Rxe7 Ra2+ 39. Kd3 e4+ 40. fxe4 fxe4+ 41. Rxe4 Ra3+ 42. Kd4 Ra4+ 43. Kd5 Rhxe4 $17) 38... Ra2+ 39. Kd3 Rxg2 $17) 36... Bxe7 {[%emt 0:00:00] [#]} 37. a5 {[%emt 0:00:01]} Ra4 {[%emt 0:00:00] And now ...Ra2+ would win.} 38. Kd3 $2 {[%emt 0:02:05] [#]} (38. axb6 $16 {and life is bright. aiming for b7.} Ra2+ 39. Ke1 (39. Kf1 Ra1+ 40. Ke2 Rd8 $11) 39... Bh4+ 40. Kd1 (40. Kf1 {gets mated.} Ra1+ 41. Ke2 Rd8 42. Rf2 Ra2+ 43. Ke1 Bxf2+ 44. Kf1 Rd1+ 45. Kg2 Bh4+) 40... Rd8+ 41. Kc1 Rxg2 42. b7) 38... e4+ $1 $17 {[%emt 0:00:00]} ({Reject} 38... Rxa5 $6 39. Nc6 Ra3+ 40. Kc4 $11) 39. fxe4 {[%emt 0:00:01]} fxe4+ {[%emt 0:00:00]} 40. Kc3 $2 {[%emt 0:00:39]} (40. Ke2 $17 Ra2+ 41. Kf1 Rxa5 42. Rf2+ Bf6 43. Rc8+ Rxc8 44. Nxc8) 40... Rxa5 $2 {[%emt 0:00:00]} (40... Bf6+ $19 41. Kb3 Rxa5 42. Rc8+ Rxc8 43. Nxc8 Rxb5+ 44. Ka3 Rg5) 41. Rxe7 $11 {[%emt 0:00:20][%mdl 64] Decoy. The position is equal.} Kxe7 $19 {[%emt 0:00:00] KRR-KRN} 42. Nc6+ {[%emt 0:00:01]} Kf6 {[%emt 0:00:00]} 43. Rf2+ {[%emt 0:00:36]} Ke6 {[%emt 0:00:00]} 44. Nxa5 {[%emt 0:00:02]} Rxa5 {[%emt 0:00:00]} 45. Rg2 {[%emt 0:00:26]} Rxb5 {[%emt 0:01:40] White must now prevent ...Kf6.} 46. Rxg7 {[%emt 0:00:02]} Rd5 {[%emt 0:00:16] Quite a comeback for White.   Weighted Error Value: White=0.24 (precise) /Black=0.25 (precise)} 1/2-1/2

[Event "US Masters 2022"]
[Site "Charlotte"]
[Date "2022.11.24"]
[Round "3.5"]
[White "Cruz, Cristhian"]
[Black "Hilby, Craig"]
[Result "1/2-1/2"]
[ECO "D01"]
[WhiteElo "2552"]
[BlackElo "2411"]
[Annotator "TA"]
[PlyCount "33"]
[EventDate "2022.11.23"]
[EventType "swiss"]
[EventCountry "USA"]
[SourceTitle "playchess.com"]
[Source "ChessBase"]
[SourceQuality "1"]
[TimeControl "5400+30"]

{[%evp 9,20,-7,0,-14,-1,0,8,0,-8,-12,-12,-20,-13]} 1. d4 {[%emt 0:02:20]} d5 {[%emt 0:00:06]} 2. Nc3 {[%emt 0:01:25]} Nf6 {[%emt 0:00:08]} 3. Bf4 {[%emt 0:00:06]} g6 {[%emt 0:00:39]} 4. Qd2 {[%emt 0:00:32]} Bg7 {[%emt 0:00:07]} 5. Bh6 {[%emt 0:01:09]} O-O {[%emt 0:00:07] The position is equal.} 6. Bxg7 {[%emt 0:00:58] D01: Veresov Opening.} Kxg7 {[%emt 0:00:04]} 7. e3 {[%emt 0:00:29]} c5 {[%emt 0:01:23]} 8. dxc5 {[%emt 0:01:33]} Qa5 {[%emt 0:03:27]} 9. Ne4 {[%emt 0:08:32]} Qxd2+ {[%emt 0:14:40]} 10. Nxd2 {[%emt 0:00:03]} Bf5 {[%emt 0:00:09] [#] An uneventful encounter.   Weighted Error Value: White=0.01 (flawless) /Black=0.01 (flawless)} {Predecessor:} 11. Bd3 $146 Nbd7 12. Nb3 Rfc8 13. Bxf5 gxf5 14. Nd4 e6 15. b4 a5 16. c3 axb4 17. cxb4 {0-1 (60) Kovalev,V (2546)-Karjakin,S (2762) Berlin 2015} 1/2-1/2

[Event "US Masters 2022"]
[Site "Charlotte"]
[Date "2022.11.25"]
[Round "3.6"]
[White "Hambleton, Aman"]
[Black "Ouellet, Maili-Jade"]
[Result "1-0"]
[ECO "D36"]
[WhiteElo "2437"]
[BlackElo "2204"]
[Annotator "TA"]
[PlyCount "129"]
[EventDate "2022.11.23"]
[EventType "swiss"]
[EventCountry "USA"]
[SourceTitle "playchess.com"]
[Source "ChessBase"]
[SourceQuality "1"]
[TimeControl "5400+30"]

{[%evp 21,129,7,44,25,17,15,24,27,25,25,19,19,6,9,15,0,0,0,13,18,13,0,16,14,13,14,35,28,33,9,16,15,35,33,47,40,45,44,41,39,38,56,129,82,127,90,129,86,116,127,147,147,147,143,187,190,186,190,184,177,170,163,333,291,308,302,380,393,355,315,503,425,464,464,442,338,541,306,576,575,539,499,631,606,655,559,645,622,817,764,987,952,1418,1381,2247,1993,29971,29972,29974,29975,29975,29976,29973,29975,29974,29974,29978,29979,29969,29939]} 1. d4 {[%emt 0:00:07]} d5 {[%emt 0:00:02]} 2. c4 {[%emt 0:00:14]} e6 {[%emt 0:00:03]} 3. Nc3 {[%emt 0:00:08]} Nf6 {[%emt 0:00:05]} 4. cxd5 {[%emt 0:00:40]} exd5 {[%emt 0:00:05]} 5. Bg5 {[%emt 0:00:14]} Be7 {[%emt 0:00:07]} 6. e3 {[%emt 0:00:13]} c6 {[%emt 0:00:11]} 7. Bd3 {[%emt 0:00:21]} Nbd7 {[%emt 0:00:16]} 8. Nge2 {[%emt 0:03:23]} O-O {[%emt 0:00:08]} 9. Qc2 {[%emt 0:01:30]} Re8 {[%emt 0:00:06]} 10. O-O {[%emt 0:01:19]} Nf8 {[%emt 0:00:05]} 11. f3 {[%emt 0:03:46]} Be6 {[%emt 0:00:06] 11...Be6 has lost popularity.} 12. Bh4 {[%emt 0:01:50] D36: Queen's Gambit Declined: Exchange Variation: Main line (5 Bg5 c6 6 Qc2).} Rc8 {[%emt 0:00:27]} 13. Bf2 {[%emt 0:00:50]} c5 {[%emt 0:02:08]} 14. Qd2 {[%emt 0:00:52] White has an edge.} Ng6 {[%emt 0:03:15]} 15. Rad1 {[%emt 0:13:08]} a6 {[%emt 0:02:47] [#]} 16. Bb1 $146 {[%emt 0:04:36]} ({Predecessor:} 16. g4 Bd6 17. h3 cxd4 18. exd4 Qc7 19. Be3 Qe7 20. Kf2 Bxg4 21. Bxg6 Bxh3 22. Bg5 Bxf1 23. Bxh7+ Kxh7 24. Rxf1 {0-1 (45) Dearing,E (2295)-Trifunovic,A (2262) Witley 1999}) 16... b5 {[%emt 0:10:49]} 17. dxc5 {[%emt 0:41:13]} Bxc5 {[%emt 0:00:45]} 18. Bxg6 {[%emt 0:02:44]} hxg6 {[%emt 0:02:29]} 19. Nd4 {[%emt 0:00:23]} Qc7 {[%emt 0:07:53]} 20. Nce2 {[%emt 0:00:33]} (20. Nxe6 {simplifies} fxe6 21. Bg3 Qa7 22. Rfe1) 20... g5 {[%emt 0:04:15]} 21. Rc1 {[%emt 0:01:16] Strongly threatening Nxe6.} (21. Nxe6 {simplifies} fxe6 22. h3 Bd6 23. Rc1) 21... Qb8 {[%emt 0:06:17]} 22. h3 {[%emt 0:02:46]} Bd7 {[%emt 0:01:28]} 23. Rc2 {[%emt 0:02:31]} Bd6 {[%emt 0:05:27]} 24. Rxc8 {[%emt 0:02:03]} Rxc8 {[%emt 0:00:21]} 25. Rc1 {[%emt 0:00:54]} b4 {[%emt 0:02:06]} 26. Rxc8+ {[%emt 0:04:12]} Qxc8 {[%emt 0:00:33]} 27. Bg3 {[%emt 0:01:21]} Qc7 {[%emt 0:01:20]} 28. Bxd6 {[%emt 0:05:47]} Qxd6 {[%emt 0:00:04]} 29. Nc1 {[%emt 0:01:15]} Qc7 {[%emt 0:07:05]} 30. Nd3 {[%emt 0:04:14]} (30. Qc2 {keeps more tension.} Qg3 31. Nd3 a5 32. Kh1) 30... a5 {[%emt 0:00:27]} 31. Qc1 $36 {[%emt 0:00:52][%mdl 2048] White is more active.} Qb6 {[%emt 0:15:18] Black is on the road to losing.} (31... Qg3 $1 $14) 32. Kf2 {[%emt 0:00:42]} (32. Qc5 $142 Qxc5 33. Nxc5) 32... Qa6 {[%emt 0:06:21]} 33. Qc2 {[%emt 0:00:27]} Be8 {[%emt 0:07:13]} 34. Nc5 {[%emt 0:00:30]} Qa7 {[%emt 0:03:38]} 35. Ncb3 {[%emt 0:00:32] White is more active. Pair of Knights!} Qb6 {[%emt 0:04:08]} 36. Qc5 {[%emt 0:00:17]} Qxc5 {[%emt 0:00:40]} 37. Nxc5 {[%emt 0:00:03]} Nd7 {[%emt 0:01:52]} 38. Nxd7 {[%emt 0:01:09]} Bxd7 $18 {[%emt 0:00:06][%mdl 4096] Endgame [#] KB-KN} 39. Nb3 $1 {[%emt 0:00:07]} a4 {[%emt 0:00:41]} 40. Nd4 {[%emt 0:00:33]} Kf8 {[%emt 0:01:23] [#]} 41. Nc2 $1 {[%emt 0:00:49]} b3 $2 {[%emt 0:02:22]} (41... Bb5 {was called for.} 42. Nxb4 Bc4) 42. axb3 {[%emt 0:00:06]} axb3 {[%emt 0:00:03]} 43. Nd4 {[%emt 0:00:30]} Ba4 {[%emt 0:00:19]} 44. Ke2 {[%emt 0:00:26]} Ke7 {[%emt 0:00:10]} 45. Kd2 {[%emt 0:00:46]} Kf6 {[%emt 0:00:21]} (45... Bd7 $142 46. Kc3 (46. Nxb3 Bb5 $16) 46... Kd6) 46. Kc3 {[%emt 0:00:40]} Ke5 {[%emt 0:00:18]} 47. Kb4 {[%emt 0:00:31] Prevents f5.} (47. Nxb3 Bb5 $16) 47... Bd7 {[%emt 0:00:12]} 48. Nxb3 {[%emt 0:00:33] Threatens to win with Kc5.} ({Less strong is} 48. Kxb3 f5 49. Kc3 Kd6 $18) 48... Bc8 $2 {[%emt 0:02:24]} (48... Kd6 {is a better defense.} 49. Ka5 Kc7) 49. Nc5 {[%emt 0:00:30]} f5 $2 {[%emt 0:02:33]} (49... d4 50. Nd3+ Kd6) 50. Nd3+ {[%emt 0:00:30]} Kd6 {[%emt 0:00:11]} 51. Kc3 {[%emt 0:00:28]} Ba6 {[%emt 0:00:38]} 52. Kd4 {[%emt 0:00:30]} Bc8 {[%emt 0:00:04]} 53. b3 {[%emt 0:00:29]} Ba6 {[%emt 0:00:25]} 54. g3 {[%emt 0:00:29][%cal Bg2g3,Bg3h4][%mdl 32]} Bb5 {[%emt 0:00:21]} 55. h4 {[%emt 0:00:32]} gxh4 {[%emt 0:00:08]} 56. gxh4 {[%emt 0:00:03]} Ba6 {[%emt 0:00:56]} 57. Nf4 {[%emt 0:00:14]} Bf1 {[%emt 0:01:01]} 58. Nh5 {[%emt 0:00:27]} Be2 {[%emt 0:01:03]} 59. Nxg7 {[%emt 0:00:23] White mates.} Bxf3 {[%emt 0:00:42]} 60. Nxf5+ {[%emt 0:00:43]} Ke6 {[%emt 0:00:21]} 61. Ng3 {[%emt 0:00:15]} Bd1 {[%emt 0:00:29]} 62. b4 {[%emt 0:00:07]} Ba4 {[%emt 0:00:10]} 63. Ne2 {[%emt 0:01:17]} Kd6 {[%emt 0:00:26]} 64. Nf4 {[%emt 0:00:41]} Bc6 {[%emt 0:00:40]} 65. h5 {[%emt 0:00:11] Weighted Error Value: White=0.09 (flawless) /Black=0.46} 1-0

[Event "US Masters 2022"]
[Site "Charlotte"]
[Date "2022.11.25"]
[Round "3.7"]
[White "Mardov, Dimitar"]
[Black "Schitco, Ivan"]
[Result "1/2-1/2"]
[ECO "C50"]
[WhiteElo "2432"]
[BlackElo "2532"]
[Annotator "TA"]
[PlyCount "91"]
[EventDate "2022.11.23"]
[EventType "swiss"]
[EventCountry "USA"]
[SourceTitle "playchess.com"]
[Source "ChessBase"]
[SourceQuality "1"]
[TimeControl "5400+30"]

{[%evp 10,91,22,14,13,6,11,0,0,0,4,12,10,3,6,8,26,24,26,1,0,0,53,35,40,2,12,19,27,17,36,28,37,14,83,87,87,87,90,26,26,29,32,12,28,28,25,25,31,22,26,32,36,0,0,14,94,93,116,116,145,77,101,68,89,67,69,70,109,94,58,64,61,50,42,0,0,0,0,0,0,0,0,0]} 1. e4 {[%emt 0:00:02]} e5 {[%emt 0:03:18]} 2. Nf3 {[%emt 0:00:05]} Nc6 {[%emt 0:00:14]} 3. Bc4 {[%emt 0:00:08]} Bc5 {[%emt 0:00:12]} 4. O-O {[%emt 0:00:41]} Nf6 {[%emt 0:00:16]} 5. d3 {[%emt 0:01:35]} d6 {[%emt 0:00:16]} 6. a4 {[%emt 0:02:22]} a5 {[%emt 0:03:01] C50: Hungarian Defence and Giuoco Pianissimo.} 7. h3 {[%emt 0:02:28]} Be6 {[%emt 0:13:36]} 8. Nbd2 {[%emt 0:05:24][%cal Bb1d2,Bd2f1,Bf1g3][%mdl 32]} O-O {[%emt 0:01:10]} 9. Re1 {[%emt 0:04:21]} Re8 {[%emt 0:02:27]} 10. Bb5 {[%emt 0:02:28]} Bd7 {[%emt 0:02:44]} 11. c3 {[%emt 0:04:17]} h6 {[%emt 0:06:21]} 12. Nf1 {[%emt 0:04:43] [#]} Bb6 $146 {[%emt 0:05:36]} ({Predecessor:} 12... Ne7 13. Bxd7 Nxd7 14. Ng3 c6 15. Nh4 Nf8 16. Qg4 Neg6 17. Nhf5 Nh7 18. h4 d5 {0-1 (53) Gajcin,M (2244)-Heinemann,J (2321) Prague 2022}) 13. Ng3 {[%emt 0:03:44]} Ne7 {[%emt 0:01:05]} 14. Bc4 {[%emt 0:06:04]} (14. d4 $5 {[%cal Rd4e5]}) 14... Ng6 {[%emt 0:07:27]} 15. d4 {[%emt 0:04:46]} Qe7 {[%emt 0:06:44]} ({Black should try} 15... d5 $11 16. exd5 exd4) 16. Be3 {[%emt 0:05:39]} exd4 {[%emt 0:04:50]} 17. Bxd4 {[%emt 0:05:53]} Bxd4 {[%emt 0:04:49]} 18. Nxd4 {[%emt 0:02:14]} Qf8 {[%emt 0:02:02]} 19. Qd2 {[%emt 0:02:48]} Re7 {[%emt 0:05:32]} 20. Bb3 {[%emt 0:03:53]} Rae8 {[%emt 0:02:20][%cal Rf6e4]} 21. Bc2 {[%emt 0:01:21]} Ne5 {[%emt 0:01:12]} (21... d5 $11 {keeps the balance.}) 22. Ngf5 $16 {[%emt 0:01:38]} Bxf5 {[%emt 0:00:30]} 23. Nxf5 {[%emt 0:00:06][%cal Bd4f5,Bf5g3,Bg3f1,Bf1e3,Be3d5][%mdl 32]} Rd7 {[%emt 0:00:07]} 24. Bb3 {[%emt 0:03:40] Against d5} (24. f4 $16 Nc6 25. Qf2) 24... g6 $11 {[%emt 0:01:31]} 25. Ng3 {[%emt 0:05:08]} Rde7 {[%emt 0:01:12]} 26. Re2 {[%emt 0:06:17]} Ned7 {[%emt 0:01:25][%cal Rf6e4]} 27. Rae1 {[%emt 0:01:06]} h5 {[%emt 0:00:06][%cal Bh6h5,Bh5h4][%mdl 32]} 28. Qg5 {[%emt 0:02:03][%csl LRa5,LRg6] Against h4} Qg7 {[%emt 0:02:32]} 29. Qxa5 {[%emt 0:02:06]} h4 $1 {[%emt 0:00:17]} 30. Nf1 {[%emt 0:00:16]} Ne5 $1 {[%emt 0:00:33]} 31. Bc2 {[%emt 0:02:38] Prevents Nd3. White wants to play f4.} (31. Re3 $5 {[%cal Rf2f4]}) 31... Nh5 {[%emt 0:03:10] Against f4} 32. Ne3 {[%emt 0:03:41]} Nf4 {[%emt 0:00:29] [#] Against Nd5} (32... c6 $11) 33. Nd5 $1 $36 {[%emt 0:00:52][%mdl 2048] Black is under strong pressure.} b6 {[%emt 0:07:18] [#]} (33... Qh6 34. Nxf4) 34. Qb5 {[%emt 0:01:58]} g5 {[%emt 0:03:43] [#]} 35. f3 {[%emt 0:03:21]} Nxd5 {[%emt 0:02:08]} 36. exd5 {[%emt 0:01:42]} Qf6 {[%emt 0:00:03]} 37. Re4 {[%emt 0:00:35] Prevents Qf4.} (37. b4 {seems wilder.} Qf4 38. Rf1 Kf8 39. a5) 37... Kg7 {[%emt 0:00:57]} 38. Qf1 {[%emt 0:01:38] White is more active.} Nd7 {[%emt 0:01:51]} 39. Rxe7 {[%emt 0:01:19]} Rxe7 {[%emt 0:00:02]} 40. Rxe7 {[%emt 0:00:45]} Qxe7 {[%emt 0:00:01][%mdl 4096] Endgame KQB-KQN} 41. Qf2 {[%emt 0:00:45] Against Qe3. aiming for Qd4+.} Nf6 {[%emt 0:00:45]} 42. Qd4 {[%emt 0:01:38] Kf2 is the strong threat.} Qe1+ {[%emt 0:02:32] The position is equal.} 43. Kh2 {[%emt 0:00:04]} Qg3+ {[%emt 0:02:29]} 44. Kg1 $1 {[%emt 0:00:05] Black must now prevent Kf1.} Qe1+ {[%emt 0:00:04]} 45. Kh2 {[%emt 0:00:03]} Qg3+ {[%emt 0:00:29]} 46. Kg1 {[%emt 0:00:05] Weighted Error Value: White=0.14 (very precise) /Black=0.14 (very precise)} 1/2-1/2

[Event "US Masters 2022"]
[Site "Charlotte"]
[Date "2022.11.25"]
[Round "3.8"]
[White "Stremavicius, Titas"]
[Black "Sargsyan, Anna M."]
[Result "1/2-1/2"]
[ECO "A14"]
[WhiteElo "2527"]
[BlackElo "2384"]
[Annotator "TA"]
[PlyCount "96"]
[EventDate "2022.11.23"]
[EventType "swiss"]
[EventCountry "USA"]
[SourceTitle "playchess.com"]
[Source "ChessBase"]
[SourceQuality "1"]
[TimeControl "5400+30"]

{[%evp 19,96,-12,0,0,25,25,56,10,8,15,83,82,72,39,33,10,147,166,153,168,165,116,181,199,190,196,209,201,235,137,129,129,200,208,207,226,218,205,428,195,358,351,339,330,390,385,344,342,447,351,325,340,556,637,623,620,604,649,627,429,550,205,202,216,642,0,0,0,0,0,0,0,0,0,0,0,0,0,0]} 1. c4 {[%emt 0:00:02]} e6 {[%emt 0:08:12]} 2. g3 {[%emt 0:03:24]} Nf6 {[%emt 0:00:36]} 3. Bg2 {[%emt 0:00:26]} d5 {[%emt 0:00:06]} 4. Nf3 {[%emt 0:00:09]} Be7 {[%emt 0:02:11]} 5. O-O {[%emt 0:00:14]} O-O {[%emt 0:01:52]} 6. b3 {[%emt 0:00:14]} d4 {[%emt 0:00:25]} 7. e3 {[%emt 0:00:33]} c5 {[%emt 0:00:04]} 8. exd4 {[%emt 0:00:08]} cxd4 {[%emt 0:00:05]} 9. d3 {[%emt 0:00:17]} Nc6 {[%emt 0:00:04]} 10. Re1 {[%emt 0:00:16]} Nd7 {[%emt 0:04:18]} 11. Ba3 $1 {[%emt 0:02:30][%mdl 4] now scores much better than the old 11.Na3. A14: English Opening: 1...e6 with b3 by White.} Bxa3 {[%emt 0:09:53]} 12. Nxa3 {[%emt 0:01:20]} e5 {[%emt 0:00:39]} 13. Nc2 {[%emt 0:06:52]} (13. Rc1 $14 {is superior.}) 13... a5 $11 {[%emt 0:02:12]} 14. a3 {[%emt 0:00:14] [#]} f5 $146 {[%emt 0:00:23]} (14... f6 $11) ({Predecessor:} 14... Re8 15. Nd2 Nc5 16. Bxc6 bxc6 17. Qf3 Qg5 18. Ne4 Nxe4 19. Qxe4 Bd7 {½-½ (33) Campos,M (2159)-Ortiz,A (1901) Buenos Aires 2022}) 15. b4 $16 {[%emt 0:01:09]} Qf6 {[%emt 0:00:32]} 16. h4 {[%emt 0:07:50]} Nd8 {[%emt 0:07:15]} 17. Qd2 {[%emt 0:09:35]} (17. Qe2 {with more complications.} f4 18. Ng5 h6 19. Bd5+) 17... a4 {[%emt 0:09:26]} (17... axb4 $11 {keeps the balance.} 18. axb4 Rxa1 19. Nxa1 (19. Rxa1 f4 $11) 19... f4) 18. Re2 {[%emt 0:04:36]} h6 {[%emt 0:03:05]} 19. Rae1 {[%emt 0:06:23][%cal Rf3e5]} Nf7 {[%emt 0:00:24]} 20. h5 {[%emt 0:00:51] Inhibits Qg6.} (20. b5 $18) 20... Ra6 {[%emt 0:13:42]} (20... Rd8 $16 21. b5 e4) 21. b5 $18 {[%emt 0:00:53]} Rd6 {[%emt 0:01:11][%cal Oe5e4]} 22. Nb4 $1 {[%emt 0:00:33] Prevents e4.} Qd8 {[%emt 0:13:42]} 23. Nd5 {[%emt 0:08:32] Prevents Rf6.} Kh7 {[%emt 0:04:08]} 24. Qd1 {[%emt 0:09:47]} (24. Nh4 $1 $18) 24... b6 $16 {[%emt 0:06:28]} 25. Nh4 {[%emt 0:02:52] And now f4 would win. White has more active pieces.} (25. Qxa4 Bb7) 25... Nc5 {[%emt 0:00:21]} (25... Qg5 $16 {was called for.} 26. Nxf5 (26. Qxa4 Nc5 $16) 26... Rxd5) 26. Ng6 $18 {[%emt 0:00:47]} Rxg6 {[%emt 0:00:09]} 27. hxg6+ {[%emt 0:00:04]} Kxg6 {[%emt 0:00:04]} 28. f4 {[%emt 0:00:21]} exf4 $2 {[%emt 0:00:15]} (28... Be6 29. fxe5 Bxd5) 29. gxf4 {[%emt 0:01:18]} (29. Nxf4+ $142 Kh7 30. Re7) 29... Qh4 $2 {[%emt 0:01:13]} (29... Kh7 30. Re7 Qd6) 30. Rf1 {[%emt 0:03:18]} (30. Nxb6 Qxf4 31. Rf1 (31. Nxa4 Nxa4 32. Qxa4 Ng5 $11) 31... Qg5 32. Nxa4 Ne6 $18) 30... Qd8 {[%emt 0:00:23]} 31. Qa1 {[%emt 0:01:17]} Nb3 {[%emt 0:00:26]} 32. Qe1 {[%emt 0:00:13]} Kh7 {[%emt 0:00:08]} 33. Re7 {[%emt 0:02:26]} Qd6 {[%emt 0:02:00]} 34. Ra7 {[%emt 0:01:27]} (34. Qg3 Nc5 35. Rf2 Be6 $18) 34... Be6 {[%emt 0:03:24]} 35. Nxb6 {[%emt 0:04:16]} (35. Rxa4 Nc5 36. Ra7 Bxd5 37. Bxd5 (37. cxd5 Kg8 $16) 37... Qg6+ 38. Kh1 Qh5+ 39. Kg2 Nd6 $16) 35... Re8 $2 {[%emt 0:01:51]} (35... Qxb6 $2 36. Ra6 (36. Rxa4 $2 Nc5 $19) 36... Qd8 37. Qxe6 $18) (35... Nc5 36. Nd5 (36. Nxa4 Nxd3 37. c5 Nxc5 $16) 36... Nxd3) 36. Nd5 {[%emt 0:00:35]} Nc5 {[%emt 0:01:44]} 37. Qg3 {[%emt 0:01:52]} Bxd5 {[%emt 0:02:08]} 38. Bxd5 {[%emt 0:00:17]} (38. cxd5 Kg8 $16) 38... Ng5 {[%emt 0:00:08]} 39. Qg2 {[%emt 0:03:30]} Re3 {[%emt 0:00:06]} 40. Ra8 $2 {[%emt 0:01:55]} (40. Bf7 Re7 41. fxg5 Rxa7 42. g6+ Kh8 43. Re1) 40... Nge6 {[%emt 0:00:23] [#]} 41. Rf3 $1 {[%emt 0:07:33] aiming for Rg3.} Nxd3 $2 {[%emt 0:02:05] [#]} (41... Re1+ 42. Kh2 Qe7) 42. Rxe3 $2 {[%emt 0:02:47]} (42. Rxa4 $2 Nexf4 43. Ra8 Nxg2 $19) ({White has to play} 42. Ra6 $1 $18 {[%cal Ra6d6]} Qf8 43. Rxe6 (43. Bxe6 Ne1 $11) 43... Re1+ 44. Rxe1 Nxe1 45. Qh3 Nxf3+ 46. Qxf3) 42... dxe3 $11 {[%emt 0:00:03] The position is equal.} 43. Qh3 {[%emt 0:05:10]} (43. Rxa4 $2 {too greedy.} Nexf4 $19) (43. Ra6 $5 e2 $8 44. Qxe2 (44. Rxd6 e1=Q+ 45. Qf1 Qe3+ 46. Kh2 Nexf4 $15) 44... Qc5+ 45. Kh1 Nf2+ 46. Kh2 Ng4+ 47. Kh1 Nf2+ 48. Kh2 Ng4+ 49. Kh1 Nf2+ $11) 43... Qxf4 {[%emt 0:01:49] ( -> ...e2)} 44. Bxe6 {[%emt 0:00:01] Dancing on a razor blade.} Qf2+ {[%emt 0:00:49]} 45. Kh1 {[%emt 0:00:01]} Qe1+ {[%emt 0:00:37]} 46. Kh2 {[%emt 0:00:04]} Qf2+ {[%emt 0:00:55]} 47. Kh1 {[%emt 0:00:03]} (47. Qg2 $5 Qh4+ $8 48. Qh3 (48. Kg1 Qe1+ 49. Qf1 Qg3+ 50. Qg2 Qe1+ 51. Qf1 Qg3+ 52. Qg2 Qe1+ $11) 48... Qf2+ 49. Qg2 Qh4+ 50. Qh3 (50. Kg1 Qe1+ 51. Qf1 Qg3+ 52. Qg2 Qe1+ 53. Qf1 Qg3+ 54. Qg2 Qe1+ $11) 50... Qf2+ $11) 47... Qe1+ {[%emt 0:00:46]} 48. Kh2 {[%emt 0:00:01]} Qf2+ {[%emt 0:00:01] Black defended with fortune.   Weighted Error Value: White=0.64/Black=0.63} 1/2-1/2